fUST/lending_fUST_20240721
["ID","MTS","AMOUNT","RATE_DAILY","PERIOD"]
[332738055,1721495445085,-1328.17,0.00013698,2]
[332738056,1721495445095,-807.74,0.00013698,2]
[332738057,1721495445104,-1298.2,0.00013698,2]
[332738058,1721495445114,-500.0,0.00013698,2]
[332738059,1721495445124,-500.0,0.00013698,2]
[332738060,1721495445133,-500.0,0.00013698,2]
[332738061,1721495445143,-1667.58,0.00013698,2]
[332738062,1721495445152,-533.97409384,0.00013698,2]
[332738063,1721495445161,-2403.89,0.00013698,2]
[332738064,1721495445171,-4206.24,0.00013698,2]
[332738065,1721495445180,-500.0,0.00013698,2]
[332738066,1721495445190,-4206.24,0.00013698,2]
[332738067,1721495445199,-4206.24,0.00013698,2]
[332738068,1721495445209,-500.0,0.00013698,2]
[332738069,1721495445219,-3365.92,0.00013698,2]
[332738070,1721495445228,-500.0,0.00013698,2]
[332738071,1721495445238,-4206.24,0.00013698,2]
[332738072,1721495445248,-500.0,0.00013698,2]
[332738073,1721495445257,-4206.24,0.00013698,2]
[332738074,1721495445267,-4206.24,0.00013698,2]
[332738075,1721495445277,-4206.24,0.00013698,2]
[332738076,1721495445287,-4206.24,0.00013698,2]
[332738077,1721495445296,-4206.24,0.00013698,2]
[332738078,1721495445305,-4206.24,0.00013698,2]
[332738079,1721495445315,-4206.24,0.00013698,2]
[332738080,1721495445325,-4206.24,0.00013698,2]
[332738081,1721495445334,-500.0,0.00013698,2]
[332738082,1721495445343,-500.0,0.00013698,2]
[332738083,1721495445352,-500.0,0.00013698,2]
[332738084,1721495445362,-4206.24,0.00013698,2]
[332738085,1721495445371,-500.0,0.00013698,2]
[332738086,1721495445381,-250.0,0.00013698,2]
[332738087,1721495445390,-500.0,0.00013698,2]
[332738088,1721495445399,-4206.24,0.00013698,2]
[332738089,1721495445409,-500.0,0.00013698,2]
[332738090,1721495445418,-500.0,0.00013698,2]
[332738091,1721495445428,-213.58377767,0.00013698,2]
[332738092,1721495445437,-4206.24,0.00013698,2]
[332738093,1721495445446,-4206.24,0.00013698,2]
[332738094,1721495445456,-2321.22,0.00013698,2]
[332738095,1721495445465,-4206.24,0.00013698,2]
[332738096,1721495445474,-4206.24,0.00013698,2]
[332738097,1721495445488,-4206.24,0.00013698,2]
[332738098,1721495445497,-4206.24,0.00013698,2]
[332738099,1721495445507,-4206.24,0.00013698,2]
[332738100,1721495445516,-4206.24,0.00013698,2]
[332738101,1721495445526,-4206.24,0.00013698,2]
[332738102,1721495445536,-4206.43423838,0.00013698,2]
[332738103,1721495445545,-500.0,0.00013698,2]
[332738104,1721495445555,-10113.51,0.00013698,2]
[332738105,1721495445566,-500.0,0.00013698,2]
[332738106,1721495445576,-1648.27,0.00013698,2]
[332738107,1721495445586,-500.0,0.00013698,2]
[332738108,1721495445596,-1039.33,0.00013698,2]
[332738109,1721495445606,-500.0,0.00013698,2]
[332738110,1721495445616,-500.0,0.00013698,2]
[332738111,1721495445626,-500.0,0.00013698,2]
[332738112,1721495445635,-500.0,0.00013698,2]
[332738113,1721495445646,-500.0,0.00013698,2]
[332738114,1721495445655,-500.0,0.00013698,2]
[332738115,1721495445665,-300.0,0.00013698,2]
[332738116,1721495445675,-424.09722852,0.00013698,2]
[332738117,1721495445684,-500.0,0.00013698,2]
[332738118,1721495445694,-1747.66,0.00013698,2]
[332738119,1721495445703,-502.76716104,0.00013698,2]
[332738120,1721495445713,-3523.48,0.00013698,2]
[332738121,1721495445722,-500.0,0.00013698,2]
[332738122,1721495445732,-500.0,0.00013698,2]
[332738123,1721495445742,-500.0,0.00013698,2]
[332738124,1721495445752,-500.0,0.00013698,2]
[332738125,1721495445761,-500.0,0.00013698,2]
[332738126,1721495445772,-500.0,0.00013698,2]
[332738127,1721495445781,-250.0,0.00013698,2]
[332738128,1721495445791,-500.0,0.00013698,2]
[332738129,1721495445800,-500.0,0.00013698,2]
[332738130,1721495445810,-500.0,0.00013698,2]
[332738131,1721495445819,-250.0,0.00013698,2]
[332738132,1721495445829,-500.0,0.00013698,2]
[332738133,1721495445838,-500.0,0.00013698,2]
[332738134,1721495445848,-561.16,0.00013698,2]
[332738135,1721495445857,-500.0,0.00013698,2]
[332738136,1721495445867,-500.0,0.00013698,2]
[332738137,1721495445877,-15891.07,0.00013698,2]
[332738138,1721495445886,-2916.19,0.00013698,2]
[332738139,1721495445896,-500.0,0.00013698,2]
[332738140,1721495445905,-568.38256445,0.00013698,2]
[332738141,1721495445915,-500.0,0.00013698,2]
[332738142,1721495445925,-500.0,0.00013698,2]
[332738143,1721495445934,-500.0,0.00013698,2]
[332738144,1721495445945,-500.0,0.00013698,2]
[332738145,1721495445954,-500.0,0.00013698,2]
[332738146,1721495445963,-588.66,0.00013698,2]
[332738147,1721495445972,-1835.91,0.00013698,2]
[332738148,1721495445982,-2727.13,0.00013698,2]
[332738149,1721495445991,-501.28590095,0.00013698,2]
[332738150,1721495446001,-500.0,0.00013698,2]
[332738151,1721495446010,-500.0,0.00013698,2]
[332738152,1721495446020,-500.0,0.00013698,2]
[332738153,1721495446029,-500.0,0.00013698,2]
[332738154,1721495446039,-500.0,0.00013698,2]
[332738155,1721495446048,-500.0,0.00013698,2]
[332738156,1721495446058,-500.0,0.00013698,2]
[332738157,1721495446067,-827.11,0.00013698,2]
[332738158,1721495446077,-500.0,0.00013698,2]
[332738159,1721495446087,-500.0,0.00013698,2]
[332738160,1721495446096,-500.0,0.00013698,2]
[332738161,1721495446106,-500.0,0.00013698,2]
[332738162,1721495446115,-502.03808671,0.00013698,2]
[332738163,1721495446126,-500.0,0.00013698,2]
[332738164,1721495446135,-882.34,0.00013698,2]
[332738165,1721495446145,-500.0,0.00013698,2]
[332738166,1721495446155,-1655.58,0.00013698,2]
[332738167,1721495446164,-1655.58,0.00013698,2]
[332738169,1721495446174,-43680.81,0.00013698,2]
[332738170,1721495446184,-1655.58,0.00013698,2]
[332738171,1721495446193,-500.0,0.00013698,2]
[332738172,1721495446203,-1655.58,0.00013698,2]
[332738173,1721495446213,-1655.58,0.00013698,2]
[332738174,1721495446223,-517.24,0.00013698,2]
[332738175,1721495446233,-2182.36,0.00013698,2]
[332738178,1721495446243,-1655.58,0.00013698,2]
[332738179,1721495446253,-548.42,0.00013698,2]
[332738180,1721495446263,-1655.58,0.00013698,2]
[332738181,1721495446272,-1655.58,0.00013698,2]
[332738182,1721495446282,-513.33275701,0.00013698,2]
[332738183,1721495446291,-519.98,0.00013698,2]
[332738184,1721495446301,-1655.58,0.00013698,2]
[332738185,1721495446310,-1655.58,0.00013698,2]
[332738186,1721495446319,-1655.58,0.00013698,2]
[332738187,1721495446329,-500.0,0.00013698,2]
[332738188,1721495446338,-1655.58,0.00013698,2]
[332738189,1721495446348,-1655.58,0.00013698,2]
[332738190,1721495446357,-1655.58,0.00013698,2]
[332738191,1721495446366,-1655.58,0.00013698,2]
[332738192,1721495446375,-1655.58,0.00013698,2]
[332738193,1721495446385,-500.0,0.00013698,2]
[332738194,1721495446394,-1655.58,0.00013698,2]
[332738195,1721495446403,-1655.58,0.00013698,2]
[332738196,1721495446412,-1655.58,0.00013698,2]
[332738197,1721495446422,-1655.58,0.00013698,2]
[332738198,1721495446431,-1655.58,0.00013698,2]
[332738199,1721495446441,-1655.58,0.00013698,2]
[332738200,1721495446450,-1655.58,0.00013698,2]
[332738201,1721495446459,-500.0,0.00013698,2]
[332738203,1721495446469,-1655.58,0.00013698,2]
[332738204,1721495446480,-500.0,0.00013698,2]
[332738205,1721495446493,-1364.06,0.00013698,2]
[332738206,1721495446503,-500.0,0.00013698,2]
[332738207,1721495446513,-500.0,0.00013698,2]
[332738209,1721495446524,-500.0,0.00013698,2]
[332738210,1721495446534,-500.0,0.00013698,2]
[332738211,1721495446544,-3000.0,0.00013699,2]
[332738212,1721495446554,-938.966256,0.00013699,2]
[332738213,1721495446565,-151.0,0.00013699,2]
[332738214,1721495446575,-151.0,0.00013699,2]
[332738215,1721495446585,-454.533744,0.00013699,2]
[332738216,1721495446594,-454.533744,0.00013699,2]
[332738217,1721495446604,-454.533744,0.00013699,2]
[332738218,1721495446614,-454.533744,0.00013699,2]
[332738219,1721495446624,-293.8031846,0.00013699,2]
[332738220,1721495446634,-153.0,0.00013699,2]
[332738221,1721495446643,-153.0,0.00013699,2]
[332738222,1721495446654,-293.8031846,0.00013699,2]
[332738223,1721495446664,-293.8031846,0.00013699,2]
[332738224,1721495446673,-293.8031846,0.00013699,2]
[332738225,1721495446683,-360.08491037,0.00013735,2]
[332738226,1721495446693,-5259.80909144,0.00013795,2]
[332738228,1721495446702,-586.5270459,0.00013836,2]
[332738229,1721495446712,-150.0,0.00013861,2]
[332738230,1721495446722,-153.0,0.000139,2]
[332738231,1721495446732,-293.8031846,0.000139,2]
[332738232,1721495446742,-19862.25738,0.000139,2]
[332738233,1721495446751,-500.0,0.00013972,2]
[332738234,1721495446761,-500.0,0.00013972,2]
[332738235,1721495446770,-889.18,0.00013972,2]
[332738236,1721495446780,-500.0,0.00013972,2]
[332738237,1721495446790,-500.0,0.00013972,2]
[332738238,1721495446799,-500.0,0.00013972,2]
[332738239,1721495446808,-500.0,0.00013972,2]
[332738240,1721495446818,-579.75,0.00013972,2]
[332738241,1721495446827,-500.0,0.00013972,2]
[332738242,1721495446838,-500.0,0.00013972,2]
[332738243,1721495446847,-2574.86,0.00013972,2]
[332738244,1721495446857,-583.33475046,0.00013972,2]
[332738245,1721495446866,-500.0,0.00013972,2]
[332738246,1721495446876,-500.0,0.00013972,2]
[332738247,1721495446885,-500.0,0.00013972,2]
[332738248,1721495446895,-500.0,0.00013972,2]
[332738249,1721495446905,-500.0,0.00013972,2]
[332738250,1721495446915,-1060.88,0.00013972,2]
[332738251,1721495446929,-161.72252877,0.00013972,2]
[332738252,1721495446939,-500.0,0.00013972,2]
[332738253,1721495446950,-500.0,0.00013972,2]
[332738254,1721495446960,-500.0,0.00013972,2]
[332738255,1721495446970,-500.0,0.00013972,2]
[332738256,1721495446980,-500.0,0.00013972,2]
[332738257,1721495446990,-500.0,0.00013972,2]
[332738258,1721495447000,-793.26,0.00013972,2]
[332738259,1721495447010,-500.0,0.00013972,2]
[332738260,1721495447019,-557.98,0.00013972,2]
[332738261,1721495447030,-500.0,0.00013972,2]
[332738262,1721495447040,-681.41,0.00013972,2]
[332738263,1721495447050,-1906.13,0.00013972,2]
[332738264,1721495447060,-1461.37,0.00013972,2]
[332738265,1721495447070,-500.0,0.00013972,2]
[332738266,1721495447081,-500.0,0.00013972,2]
[332738267,1721495447091,-655.3,0.00013972,2]
[332738268,1721495447100,-957.74,0.00013972,2]
[332738269,1721495447110,-702.74,0.00013972,2]
[332738270,1721495447119,-500.0,0.00013972,2]
[332738271,1721495447129,-500.0,0.00013972,2]
[332738272,1721495447139,-500.0,0.00013972,2]
[332738273,1721495447339,-500.0,0.00013972,2]
[332738274,1721495447357,-500.0,0.00013972,2]
[332738275,1721495447367,-500.0,0.00013972,2]
[332738276,1721495447377,-827.52,0.00013972,2]
[332738277,1721495447387,-595.62,0.00013972,2]
[332738278,1721495447397,-500.0,0.00013972,2]
[332738279,1721495447408,-500.0,0.00013972,2]
[332738280,1721495447418,-500.0,0.00013972,2]
[332738281,1721495447431,-500.0,0.00013972,2]
[332738282,1721495447440,-1234.83,0.00013972,2]
[332738283,1721495447452,-500.0,0.00013972,2]
[332738284,1721495447463,-970.97,0.00013972,2]
[332738285,1721495447473,-500.0,0.00013972,2]
[332738286,1721495447485,-500.0,0.00013972,2]
[332738287,1721495447496,-568.34,0.00013972,2]
[332738288,1721495447508,-907.34,0.00013972,2]
[332738289,1721495447518,-500.0,0.00013972,2]
[332738290,1721495447528,-765.68,0.00013972,2]
[332738291,1721495447539,-793.84,0.00013972,2]
[332738292,1721495447549,-504.399664,0.00013972,2]
[332738293,1721495447559,-893.24,0.00013972,2]
[332738294,1721495447570,-560.72,0.00013972,2]
[332738295,1721495447580,-551.25,0.00013972,2]
[332738296,1721495447590,-500.0,0.00013972,2]
[332738297,1721495447600,-747.98,0.00013972,2]
[332738298,1721495447612,-1642.46,0.00013972,2]
[332738299,1721495447621,-602.62,0.00013972,2]
[332738300,1721495447631,-500.0,0.00013972,2]
[332738301,1721495447642,-151.0,0.00013972,2]
[332738302,1721495447652,-298.47911728,0.00013972,2]
[332738303,1721495447662,-500.0,0.00013972,2]
[332738304,1721495447673,-3339.07,0.00013972,2]
[332738305,1721495447684,-2704.37,0.00013972,2]
[332738306,1721495447695,-500.0,0.00013972,2]
[332738307,1721495447705,-967.49,0.00013972,2]
[332738308,1721495447716,-2063.11,0.00013972,2]
[332738309,1721495447727,-844.33,0.00013972,2]
[332738310,1721495447738,-2235.94,0.00013972,2]
[332738311,1721495447748,-500.0,0.00013972,2]
[332738312,1721495447758,-545.40045561,0.00013972,2]
[332738313,1721495447768,-763.24,0.00013972,2]
[332738314,1721495447778,-967.19,0.00013972,2]
[332738315,1721495447788,-155.98610733,0.00013972,2]
[332738316,1721495447798,-500.0,0.00013972,2]
[332738317,1721495447808,-500.0,0.00013972,2]
[332738318,1721495447818,-500.0,0.00013972,2]
[332738319,1721495447828,-600.07,0.00013972,2]
[332738320,1721495447838,-635.32,0.00013972,2]
[332738321,1721495447848,-1088.88,0.00013972,2]
[332738322,1721495447858,-500.0,0.00013972,2]
[332738323,1721495447867,-582.59,0.00013972,2]
[332738324,1721495447877,-500.0,0.00013972,2]
[332738325,1721495447887,-1074.71,0.00013972,2]
[332738326,1721495447896,-500.0,0.00013972,2]
[332738327,1721495447906,-557.2,0.00013972,2]
[332738328,1721495447916,-500.0,0.00013972,2]
[332738329,1721495447926,-503.98,0.00013972,2]
[332738330,1721495447935,-313.35768215,0.00013972,2]
[332738331,1721495447944,-500.0,0.00013972,2]
[332738332,1721495447954,-500.0,0.00013972,2]
[332738333,1721495447964,-500.0,0.00013972,2]
[332738334,1721495447973,-720.23,0.00013972,2]
[332738335,1721495447983,-500.0,0.00013972,2]
[332738336,1721495447993,-500.0,0.00013972,2]
[332738337,1721495448002,-500.0,0.00013972,2]
[332738338,1721495448012,-500.0,0.00013972,2]
[332738339,1721495448024,-500.0,0.00013972,2]
[332738340,1721495448034,-534.11,0.00013972,2]
[332738341,1721495448044,-500.0,0.00013972,2]
[332738342,1721495448053,-500.0,0.00013972,2]
[332738343,1721495448063,-500.0,0.00013972,2]
[332738344,1721495448072,-500.0,0.00013972,2]
[332738345,1721495448081,-3950.95,0.00013972,2]
[332738346,1721495448092,-500.0,0.00013972,2]
[332738347,1721495448102,-500.0,0.00013972,2]
[332738348,1721495448112,-549.98,0.00013972,2]
[332738349,1721495448121,-500.0,0.00013972,2]
[332738350,1721495448131,-500.0,0.00013972,2]
[332738351,1721495448141,-1351.79,0.00013972,2]
[332738352,1721495448151,-500.0,0.00013972,2]
[332738353,1721495448160,-500.0,0.00013972,2]
[332738354,1721495448169,-1135.29,0.00013972,2]
[332738355,1721495448179,-555.93805008,0.00013972,2]
[332738356,1721495448189,-582.80298837,0.00013972,2]
[332738357,1721495448208,-1851.86,0.00013972,2]
[332738358,1721495448220,-500.0,0.00013972,2]
[332738359,1721495448231,-500.0,0.00013972,2]
[332738360,1721495448241,-550.86,0.00013972,2]
[332738361,1721495448252,-500.0,0.00013972,2]
[332738362,1721495448262,-500.0,0.00013972,2]
[332738363,1721495448273,-470.93359713,0.00013972,2]
[332738364,1721495448283,-500.0,0.00013972,2]
[332738365,1721495448294,-400.0,0.00013972,2]
[332738366,1721495448304,-500.0,0.00013972,2]
[332738367,1721495448315,-500.0,0.00013972,2]
[332738368,1721495448325,-500.0,0.00013972,2]
[332738369,1721495448335,-520.9477985,0.00013972,2]
[332738370,1721495448346,-500.0,0.00013972,2]
[332738371,1721495448356,-500.0,0.00013972,2]
[332738372,1721495448367,-169.08451912,0.00013972,2]
[332738373,1721495448378,-281.9230277,0.00013972,2]
[332738374,1721495448389,-543.13,0.00013972,2]
[332738375,1721495448399,-634.39,0.00013972,2]
[332738376,1721495448409,-1832.54,0.00013972,2]
[332738377,1721495448420,-689.47,0.00013972,2]
[332738378,1721495448431,-1204.68,0.00013972,2]
[332738379,1721495448442,-245.08411045,0.00013972,2]
[332738380,1721495448453,-994.69,0.00013972,2]
[332738381,1721495448463,-500.0,0.00013972,2]
[332738382,1721495448473,-507.42940929,0.00013972,2]
[332738383,1721495448485,-500.0,0.00013972,2]
[332738384,1721495448496,-500.0,0.00013972,2]
[332738385,1721495448507,-500.0,0.00013972,2]
[332738386,1721495448517,-500.0,0.00013972,2]
[332738387,1721495448527,-785.88,0.00013972,2]
[332738388,1721495448538,-500.0,0.00013972,2]
[332738389,1721495448548,-500.0,0.00013972,2]
[332738390,1721495448558,-500.0,0.00013972,2]
[332738391,1721495448570,-500.0,0.00013972,2]
[332738392,1721495448581,-500.0,0.00013972,2]
[332738393,1721495448592,-511.32174449,0.00013972,2]
[332738394,1721495448602,-500.0,0.00013972,2]
[332738395,1721495448612,-500.0,0.00013972,2]
[332738396,1721495448623,-173.75511392,0.00013972,2]
[332738397,1721495448635,-500.0,0.00013972,2]
[332738398,1721495448645,-150.0,0.00013972,2]
[332738399,1721495448656,-500.0,0.00013972,2]
[332738400,1721495448667,-500.0,0.00013972,2]
[332738401,1721495448679,-2734.53,0.00013972,2]
[332738402,1721495448690,-514.16,0.00013972,2]
[332738403,1721495448701,-960.34,0.00013972,2]
[332738404,1721495448711,-500.0,0.00013972,2]
[332738405,1721495448722,-1811.71,0.00013972,2]
[332738406,1721495448733,-500.0,0.00013972,2]
[332738407,1721495448744,-500.0,0.00013972,2]
[332738408,1721495448754,-500.0,0.00013972,2]
[332738409,1721495448765,-500.0,0.00013972,2]
[332738410,1721495448775,-500.0,0.00013972,2]
[332738411,1721495448784,-500.0,0.00013972,2]
[332738412,1721495448795,-500.0,0.00013972,2]
[332738413,1721495448805,-500.0,0.00013972,2]
[332738414,1721495448815,-500.0,0.00013972,2]
[332738415,1721495448825,-2140.25,0.00013972,2]
[332738416,1721495448835,-500.0,0.00013972,2]
[332738417,1721495448845,-500.0,0.00013972,2]
[332738418,1721495448856,-500.0,0.00013972,2]
[332738419,1721495448867,-500.0,0.00013972,2]
[332738420,1721495448877,-177.09484028,0.00013972,2]
[332738421,1721495448887,-522.39,0.00013972,2]
[332738422,1721495448898,-2061.29,0.00013972,2]
[332738423,1721495448909,-500.0,0.00013972,2]
[332738424,1721495448919,-562.25,0.00013972,2]
[332738425,1721495448930,-500.0,0.00013972,2]
[332738426,1721495448940,-500.0,0.00013972,2]
[332738427,1721495448951,-729.09,0.00013972,2]
[332738428,1721495448963,-500.0,0.00013972,2]
[332738429,1721495448973,-370.99336645,0.00013972,2]
[332738430,1721495448983,-1451.7,0.00013972,2]
[332738431,1721495448994,-500.0,0.00013972,2]
[332738432,1721495449005,-510.31,0.00013972,2]
[332738433,1721495449015,-500.0,0.00013972,2]
[332738434,1721495449029,-500.0,0.00013972,2]
[332738435,1721495449039,-500.0,0.00013972,2]
[332738436,1721495449049,-500.0,0.00013972,2]
[332738437,1721495449060,-521.45625736,0.00013972,2]
[332738438,1721495449070,-1409.51,0.00013972,2]
[332738439,1721495449081,-500.0,0.00013972,2]
[332738440,1721495449092,-2212.42,0.00013972,2]
[332738441,1721495449103,-973.63,0.00013972,2]
[332738442,1721495449113,-1857.09,0.00013972,2]
[332738443,1721495449123,-597.72,0.00013972,2]
[332738444,1721495449134,-500.0,0.00013972,2]
[332738445,1721495449145,-352.51834169,0.00013972,2]
[332738446,1721495449156,-500.0,0.00013972,2]
[332738447,1721495449167,-944.13,0.00013972,2]
[332738448,1721495449178,-551.34285931,0.00013972,2]
[332738449,1721495449188,-500.0,0.00013972,2]
[332738450,1721495449199,-500.0,0.00013972,2]
[332738451,1721495449210,-500.0,0.00013972,2]
[332738452,1721495449220,-500.0,0.00013972,2]
[332738453,1721495449230,-500.0,0.00013972,2]
[332738454,1721495449240,-797.1,0.00013972,2]
[332738455,1721495449250,-335.80325809,0.00013972,2]
[332738456,1721495449262,-500.0,0.00013972,2]
[332738457,1721495449272,-1950.43,0.00013972,2]
[332738458,1721495449282,-500.0,0.00013972,2]
[332738459,1721495449293,-1096.08,0.00013972,2]
[332738460,1721495449303,-2028.85,0.00013972,2]
[332738461,1721495449314,-1564.09,0.00013972,2]
[332738462,1721495449324,-708.33,0.00013972,2]
[332738463,1721495449334,-710.15,0.00013972,2]
[332738464,1721495449344,-500.0,0.00013972,2]
[332738465,1721495449355,-500.0,0.00013972,2]
[332738466,1721495449365,-9697.8,0.00013972,2]
[332738467,1721495449377,-500.0,0.00013972,2]
[332738468,1721495449388,-1045.37,0.00013972,2]
[332738469,1721495449398,-848.68,0.00013972,2]
[332738470,1721495449409,-500.0,0.00013972,2]
[332738471,1721495449419,-500.0,0.00013972,2]
[332738472,1721495449430,-2079.26,0.00013972,2]
[332738473,1721495449441,-500.0,0.00013972,2]
[332738474,1721495449451,-500.0,0.00013972,2]
[332738475,1721495449462,-5198.9,0.00013972,2]
[332738476,1721495449472,-755.78,0.00013972,2]
[332738477,1721495449486,-641.85,0.00013972,2]
[332738478,1721495449497,-500.0,0.00013972,2]
[332738479,1721495449508,-3044.88,0.00013972,2]
[332738480,1721495449519,-688.33,0.00013972,2]
[332738481,1721495449530,-586.14,0.00013972,2]
[332738482,1721495449540,-1185.26,0.00013972,2]
[332738483,1721495449551,-151.0,0.00013972,2]
[332738484,1721495449562,-1354.73,0.00013972,2]
[332738485,1721495449574,-2207.73,0.00013972,2]
[332738486,1721495449585,-2525.7,0.00013972,2]
[332738487,1721495449596,-500.0,0.00013972,2]
[332738488,1721495449606,-3650.95,0.00013972,2]
[332738489,1721495449616,-500.0,0.00013972,2]
[332738490,1721495449626,-500.0,0.00013972,2]
[332738491,1721495449636,-749.13,0.00013972,2]
[332738492,1721495449647,-500.0,0.00013972,2]
[332738493,1721495449657,-787.24,0.00013972,2]
[332738494,1721495449668,-2474.72,0.00013972,2]
[332738495,1721495449678,-500.0,0.00013972,2]
[332738496,1721495449687,-500.0,0.00013972,2]
[332738497,1721495449698,-558.71,0.00013972,2]
[332738498,1721495449708,-500.0,0.00013972,2]
[332738499,1721495449719,-500.0,0.00013972,2]
[332738500,1721495449729,-500.0,0.00013972,2]
[332738501,1721495449741,-5897.15,0.00013972,2]
[332738502,1721495449751,-668.72,0.00013972,2]
[332738503,1721495449765,-3713.23,0.00013972,2]
[332738504,1721495449775,-601.52472544,0.00013972,2]
[332738505,1721495449785,-673.52,0.00013972,2]
[332738506,1721495449795,-3061.24,0.00013972,2]
[332738507,1721495449805,-2292.59,0.00013972,2]
[332738508,1721495449814,-423.73046473,0.00013972,2]
[332738509,1721495449824,-1125.6,0.00013972,2]
[332738510,1721495449834,-500.0,0.00013972,2]
[332738511,1721495449844,-500.0,0.00013972,2]
[332738512,1721495449855,-1737.87,0.00013972,2]
[332738513,1721495449865,-500.0,0.00013972,2]
[332738514,1721495449876,-634.59,0.00013972,2]
[332738515,1721495449885,-630.64,0.00013972,2]
[332738516,1721495449896,-620.22,0.00013972,2]
[332738517,1721495449906,-1278.3,0.00013972,2]
[332738518,1721495449916,-4000.88,0.00013972,2]
[332738519,1721495449926,-500.0,0.00013972,2]
[332738520,1721495450014,-539.75121852,0.00013972,2]
[332738521,1721495450024,-2587.87,0.00013972,2]
[332738522,1721495450033,-500.0,0.00013972,2]
[332738523,1721495450042,-500.0,0.00013972,2]
[332738524,1721495450052,-938.51,0.00013972,2]
[332738525,1721495450061,-1173.85,0.00013972,2]
[332738526,1721495450070,-500.0,0.00013972,2]
[332738527,1721495450080,-500.0,0.00013972,2]
[332738528,1721495450090,-500.0,0.00013972,2]
[332738529,1721495450099,-663.63,0.00013972,2]
[332738530,1721495450109,-500.0,0.00013972,2]
[332738531,1721495450118,-500.0,0.00013972,2]
[332738532,1721495450127,-2018.48,0.00013972,2]
[332738533,1721495450137,-500.0,0.00013972,2]
[332738534,1721495450147,-500.0,0.00013972,2]
[332738535,1721495450158,-500.0,0.00013972,2]
[332738536,1721495450167,-723.99,0.00013972,2]
[332738537,1721495450177,-518.45285291,0.00013972,2]
[332738538,1721495450186,-219.41559619,0.00013972,2]
[332738539,1721495450196,-500.0,0.00013972,2]
[332738540,1721495450205,-554.02,0.00013972,2]
[332738541,1721495450215,-500.0,0.00013972,2]
[332738542,1721495450225,-2965.8,0.00013972,2]
[332738543,1721495450235,-7880.53,0.00013972,2]
[332738544,1721495450245,-531.42,0.00013972,2]
[332738545,1721495450254,-974.25,0.00013972,2]
[332738546,1721495450263,-501.72983271,0.00013972,2]
[332738547,1721495450273,-4375.62,0.00013972,2]
[332738548,1721495450283,-1908.47,0.00013972,2]
[332738549,1721495450292,-500.0,0.00013972,2]
[332738550,1721495450301,-3157.07,0.00013972,2]
[332738551,1721495450310,-509.32,0.00013972,2]
[332738552,1721495450320,-500.0,0.00013972,2]
[332738553,1721495450329,-20147.95,0.00013972,2]
[332738554,1721495450338,-2383.38,0.00013972,2]
[332738555,1721495450348,-502.63355936,0.00013972,2]
[332738556,1721495450358,-1272.38,0.00013972,2]
[332738557,1721495450367,-886.97,0.00013972,2]
[332738558,1721495450376,-797.94,0.00013972,2]
[332738559,1721495450386,-500.0,0.00013972,2]
[332738560,1721495450394,-679.57,0.00013972,2]